[Event "Titled Tuesday Blitz June 6 Early 2023"]
[White "LeoLV10"]
[Black "Shohat, Yotam"]
[BlackFideId "2813955"]
[WhiteElo "2412"]
[BlackElo "2226"]
[Result "1-0"]
[Round "4"]
[TimeControl "180+2"]
[Date "2023.06.06"]
[WhiteClock "0:00:18"]
[BlackClock "0:00:30"]
[Board "105"]

1. e4 {[%clk 0:02:57]}  e5 {[%clk 0:02:59]} 2. Nf3 {[%clk 0:02:56]}  Nc6 {[%clk 0:02:59]} 3. Bb5 {[%clk 0:02:57]}  a6 {[%clk 0:02:59]} 4. Ba4 {[%clk 0:02:57]}  Nf6 {[%clk 0:03:00]} 5. O-O {[%clk 0:02:57]}  Nxe4 {[%clk 0:03:00]} 6. Re1 {[%clk 0:02:56]}  Nc5 {[%clk 0:03:00]} 7. Nxe5 {[%clk 0:02:55]}  Be7 {[%clk 0:02:48]} 8. Bxc6 {[%clk 0:02:38]}  dxc6 {[%clk 0:02:48]} 9. d4 {[%clk 0:02:39]}  Ne6 {[%clk 0:02:48]} 10. c3 {[%clk 0:02:39]}  O-O {[%clk 0:02:48]} 11. Nd2 {[%clk 0:02:39]}  f6 {[%clk 0:02:48]} 12. Nd3 {[%clk 0:02:33]}  Bd6 {[%clk 0:02:46]} 13. Nf3 {[%clk 0:02:33]}  c5 {[%clk 0:02:41]} 14. Qb3 {[%clk 0:02:32]}  Kh8 {[%clk 0:02:39]} 15. Rxe6 {[%clk 0:02:29]}  Bxe6 {[%clk 0:02:33]} 16. Qxe6 {[%clk 0:02:30]}  Re8 {[%clk 0:02:32]} 17. Qb3 {[%clk 0:02:30]}  cxd4 {[%clk 0:02:27]} 18. cxd4 {[%clk 0:02:28]}  b6 {[%clk 0:02:11]} 19. Be3 {[%clk 0:02:28]}  Qd7 {[%clk 0:02:07]} 20. Rd1 {[%clk 0:02:27]}  a5 {[%clk 0:02:05]} 21. Qc2 {[%clk 0:02:18]}  Qf5 {[%clk 0:02:03]} 22. Nde1 {[%clk 0:02:09]}  Qh5 {[%clk 0:02:03]} 23. Qd3 {[%clk 0:01:58]}  g5 {[%clk 0:02:02]} 24. Qf5 {[%clk 0:01:55]}  Qf7 {[%clk 0:01:59]} 25. Nxg5 {[%clk 0:01:51]}  Qg7 {[%clk 0:02:00]} 26. Ngf3 {[%clk 0:01:39]}  Rg8 {[%clk 0:02:00]} 27. g3 {[%clk 0:01:39]}  Rae8 {[%clk 0:01:58]} 28. Ng2 {[%clk 0:01:39]}  Qf7 {[%clk 0:01:53]} 29. d5 {[%clk 0:01:36]}  b5 {[%clk 0:01:42]} 30. Bd4 {[%clk 0:01:36]}  Rg6 {[%clk 0:01:39]} 31. Ngh4 {[%clk 0:01:27]}  Rh6 {[%clk 0:01:39]} 32. Ng2 {[%clk 0:01:23]}  Kg8 {[%clk 0:01:32]} 33. Ne3 {[%clk 0:01:16]}  Rh5 {[%clk 0:01:12]} 34. Qxf6 {[%clk 0:01:10]}  Qxf6 {[%clk 0:01:12]} 35. Bxf6 {[%clk 0:01:10]}  Rf8 {[%clk 0:01:13]} 36. Ng4 {[%clk 0:00:51]}  a4 {[%clk 0:01:05]} 37. Nh4 {[%clk 0:00:47]}  b4 {[%clk 0:01:01]} 38. Bd4 {[%clk 0:00:44]}  Be7 {[%clk 0:00:55]} 39. Ng2 {[%clk 0:00:41]}  h6 {[%clk 0:00:51]} 40. Be3 {[%clk 0:00:40]}  Kh7 {[%clk 0:00:49]} 41. Nxh6 {[%clk 0:00:30]}  b3 {[%clk 0:00:44]} 42. axb3 {[%clk 0:00:28]}  axb3 {[%clk 0:00:45]} 43. Ng4 {[%clk 0:00:27]}  Ra8 {[%clk 0:00:41]} 44. Nf4 {[%clk 0:00:22]}  Rf5 {[%clk 0:00:41]} 45. Rd3 {[%clk 0:00:22]}  Rb8 {[%clk 0:00:33]} 46. Bd4 {[%clk 0:00:20]}  Rxd5 {[%clk 0:00:30]} 47. Nxd5 {[%clk 0:00:18]} 1-0


[Site "https://www.chess.com"]

[Event "Titled Tuesday Blitz June 6 Early 2023"]
[White "Koridze, Lile"]
[Black "Malyi, Viacheslav"]
[WhiteFideId "13612514"]
[BlackFideId "14123983"]
[WhiteElo "2047"]
[BlackElo "2291"]
[Result "1-0"]
[Round "4"]
[TimeControl "180+2"]
[Date "2023.06.06"]
[WhiteClock "0:00:18"]
[BlackClock "0:00:32"]
[Board "106"]

1. d4 {[%clk 0:03:00]}  Nf6 {[%clk 0:02:50]} 2. c4 {[%clk 0:03:00]}  g6 {[%clk 0:02:45]} 3. Nc3 {[%clk 0:03:00]}  Bg7 {[%clk 0:02:43]} 4. e4 {[%clk 0:03:00]}  O-O {[%clk 0:02:43]} 5. Nf3 {[%clk 0:02:58]}  d6 {[%clk 0:02:44]} 6. Be2 {[%clk 0:02:59]}  e5 {[%clk 0:02:44]} 7. d5 {[%clk 0:02:58]}  Na6 {[%clk 0:02:42]} 8. Bg5 {[%clk 0:02:54]}  h6 {[%clk 0:02:40]} 9. Bh4 {[%clk 0:02:54]}  Nc5 {[%clk 0:02:38]} 10. b4 {[%clk 0:02:50]}  Na6 {[%clk 0:02:38]} 11. a3 {[%clk 0:02:48]}  g5 {[%clk 0:02:37]} 12. Bg3 {[%clk 0:02:48]}  c5 {[%clk 0:02:34]} 13. dxc6 {[%clk 0:02:46]}  bxc6 {[%clk 0:02:33]} 14. O-O {[%clk 0:02:41]}  c5 {[%clk 0:02:29]} 15. Qa4 {[%clk 0:02:11]}  Qb6 {[%clk 0:02:23]} 16. Rab1 {[%clk 0:01:57]}  cxb4 {[%clk 0:02:14]} 17. axb4 {[%clk 0:01:57]}  Bd7 {[%clk 0:02:15]} 18. Qa3 {[%clk 0:01:48]}  Rab8 {[%clk 0:02:05]} 19. c5 {[%clk 0:01:03]}  dxc5 {[%clk 0:01:53]} 20. Qxa6 {[%clk 0:00:53]}  cxb4 {[%clk 0:01:52]} 21. Nd5 {[%clk 0:00:50]}  Qxa6 {[%clk 0:01:42]} 22. Bxa6 {[%clk 0:00:49]}  Nxe4 {[%clk 0:01:43]} 23. Bxe5 {[%clk 0:00:49]}  b3 {[%clk 0:01:15]} 24. Bxb8 {[%clk 0:00:43]}  Rxb8 {[%clk 0:01:14]} 25. Rfe1 {[%clk 0:00:40]}  f5 {[%clk 0:01:03]} 26. Bc4 {[%clk 0:00:34]}  Kh7 {[%clk 0:00:53]} 27. Rxb3 {[%clk 0:00:34]}  Rc8 {[%clk 0:00:54]} 28. Ba6 {[%clk 0:00:32]}  Rc2 {[%clk 0:00:52]} 29. Rb7 {[%clk 0:00:28]}  Bc6 {[%clk 0:00:49]} 30. Rc7 {[%clk 0:00:28]}  Nxf2 {[%clk 0:00:39]} 31. Ree7 {[%clk 0:00:22]}  Kg6 {[%clk 0:00:31]} 32. Rxg7+ {[%clk 0:00:18]}  Kh5 {[%clk 0:00:32]} 33. Nf6# {[%clk 0:00:18]} 1-0


[Site "https://www.chess.com"]

[Event "Titled Tuesday Blitz June 6 Early 2023"]
[White "MKlose11"]
[Black "Lopez Idarraga, Daniel Eduardo"]
[BlackFideId "4405501"]
[WhiteElo "2556"]
[BlackElo "1980"]
[Result "0-1"]
[Round "4"]
[TimeControl "180+2"]
[Date "2023.06.06"]
[WhiteClock "0:00:14"]
[BlackClock "0:00:46"]
[Board "107"]

1. e4 {[%clk 0:02:55]}  c5 {[%clk 0:03:00]} 2. Nc3 {[%clk 0:02:52]}  Nc6 {[%clk 0:03:00]} 3. g3 {[%clk 0:02:53]}  e6 {[%clk 0:02:59]} 4. Bg2 {[%clk 0:02:54]}  Nf6 {[%clk 0:03:00]} 5. d3 {[%clk 0:02:54]}  Be7 {[%clk 0:02:59]} 6. h3 {[%clk 0:02:55]}  O-O {[%clk 0:03:00]} 7. f4 {[%clk 0:02:55]}  d5 {[%clk 0:02:58]} 8. e5 {[%clk 0:02:52]}  Nd7 {[%clk 0:02:59]} 9. Nf3 {[%clk 0:02:52]}  f6 {[%clk 0:02:58]} 10. exf6 {[%clk 0:02:50]}  Nxf6 {[%clk 0:02:59]} 11. O-O {[%clk 0:02:50]}  Rb8 {[%clk 0:02:56]} 12. Re1 {[%clk 0:02:50]}  b5 {[%clk 0:02:55]} 13. Bd2 {[%clk 0:02:42]}  b4 {[%clk 0:02:54]} 14. Ne2 {[%clk 0:02:42]}  a5 {[%clk 0:02:54]} 15. Rf1 {[%clk 0:02:42]}  a4 {[%clk 0:02:54]} 16. Be1 {[%clk 0:02:42]}  Bd7 {[%clk 0:02:49]} 17. Bf2 {[%clk 0:02:42]}  Qc7 {[%clk 0:02:44]} 18. Qd2 {[%clk 0:02:38]}  e5 {[%clk 0:02:43]} 19. fxe5 {[%clk 0:02:36]}  Nxe5 {[%clk 0:02:44]} 20. Nxe5 {[%clk 0:02:35]}  Qxe5 {[%clk 0:02:45]} 21. d4 {[%clk 0:02:35]}  Ne4 {[%clk 0:02:37]} 22. dxe5 {[%clk 0:02:21]}  Nxd2 {[%clk 0:02:37]} 23. Bxd5+ {[%clk 0:02:22]}  Kh8 {[%clk 0:02:36]} 24. Rfd1 {[%clk 0:02:22]}  Bg5 {[%clk 0:02:18]} 25. Nf4 {[%clk 0:02:07]}  Rxf4 {[%clk 0:02:16]} 26. gxf4 {[%clk 0:02:04]}  Bxf4 {[%clk 0:02:15]} 27. e6 {[%clk 0:02:03]}  Bb5 {[%clk 0:02:10]} 28. Kg2 {[%clk 0:01:57]}  Rd8 {[%clk 0:01:30]} 29. Bg3 {[%clk 0:01:49]}  Bg5 {[%clk 0:01:27]} 30. Bb7 {[%clk 0:01:39]}  Re8 {[%clk 0:01:18]} 31. h4 {[%clk 0:01:36]}  Bh6 {[%clk 0:01:14]} 32. Re1 {[%clk 0:01:23]}  Nc4 {[%clk 0:01:12]} 33. Re4 {[%clk 0:00:59]}  Ne3+ {[%clk 0:01:09]} 34. Kf2 {[%clk 0:00:47]}  Nxc2 {[%clk 0:01:07]} 35. Rd1 {[%clk 0:00:38]}  Be3+ {[%clk 0:01:04]} 36. Rxe3 {[%clk 0:00:35]}  Nxe3 {[%clk 0:01:05]} 37. Kxe3 {[%clk 0:00:35]}  Rxe6+ {[%clk 0:01:04]} 38. Be4 {[%clk 0:00:29]}  Re8 {[%clk 0:01:02]} 39. Bc7 {[%clk 0:00:23]}  Bc6 {[%clk 0:00:59]} 40. Rd8 {[%clk 0:00:24]}  Rxd8 {[%clk 0:00:58]} 41. Bxd8 {[%clk 0:00:24]}  Bxe4 {[%clk 0:00:48]} 42. Kxe4 {[%clk 0:00:24]}  c4 {[%clk 0:00:49]} 43. Kd4 {[%clk 0:00:20]}  c3 {[%clk 0:00:48]} 44. bxc3 {[%clk 0:00:20]}  b3 {[%clk 0:00:46]} 45. axb3 {[%clk 0:00:14]}  a3 {[%clk 0:00:46]} 0-1


[Site "https://www.chess.com"]

[Event "Titled Tuesday Blitz June 6 Early 2023"]
[White "Lacasa Diaz, Jose Antonio"]
[Black "Streltsov, Alexey"]
[WhiteFideId "2203375"]
[BlackFideId "24104434"]
[WhiteElo "2338"]
[BlackElo "2540"]
[Result "0-1"]
[Round "4"]
[TimeControl "180+2"]
[Date "2023.06.06"]
[WhiteClock "0:00:26"]
[BlackClock "0:00:50"]
[Board "109"]

1. b3 {[%clk 0:02:58]}  a5 {[%clk 0:02:58]} 2. c4 {[%clk 0:02:54]}  a4 {[%clk 0:02:55]} 3. bxa4 {[%clk 0:02:54]}  d6 {[%clk 0:02:55]} 4. Nc3 {[%clk 0:02:48]}  Nd7 {[%clk 0:02:55]} 5. Nf3 {[%clk 0:02:47]}  Nb6 {[%clk 0:02:55]} 6. d3 {[%clk 0:02:45]}  Bd7 {[%clk 0:02:56]} 7. g3 {[%clk 0:02:35]}  Nxa4 {[%clk 0:02:45]} 8. Nxa4 {[%clk 0:02:35]}  Bxa4 {[%clk 0:02:46]} 9. Qd2 {[%clk 0:02:35]}  g6 {[%clk 0:02:40]} 10. Bb2 {[%clk 0:02:35]}  Nf6 {[%clk 0:02:41]} 11. Bg2 {[%clk 0:02:34]}  Bc6 {[%clk 0:02:38]} 12. O-O {[%clk 0:02:30]}  Bg7 {[%clk 0:02:38]} 13. e4 {[%clk 0:02:26]}  O-O {[%clk 0:02:32]} 14. Nd4 {[%clk 0:02:24]}  Bd7 {[%clk 0:02:24]} 15. f4 {[%clk 0:02:24]}  c5 {[%clk 0:02:17]} 16. Nf3 {[%clk 0:02:13]}  Bc6 {[%clk 0:02:15]} 17. Ne1 {[%clk 0:02:02]}  Qb6 {[%clk 0:01:58]} 18. Bc3 {[%clk 0:01:56]}  Nd7 {[%clk 0:01:50]} 19. Bxg7 {[%clk 0:01:50]}  Kxg7 {[%clk 0:01:50]} 20. Qc3+ {[%clk 0:01:48]}  e5 {[%clk 0:01:50]} 21. Bh3 {[%clk 0:01:45]}  f6 {[%clk 0:01:46]} 22. Be6 {[%clk 0:01:36]}  Qa5 {[%clk 0:01:39]} 23. Qxa5 {[%clk 0:01:26]}  Rxa5 {[%clk 0:01:39]} 24. Bxd7 {[%clk 0:01:24]}  Bxd7 {[%clk 0:01:40]} 25. Rf2 {[%clk 0:01:20]}  Ra3 {[%clk 0:01:39]} 26. Rb2 {[%clk 0:01:19]}  Bc6 {[%clk 0:01:39]} 27. Rd1 {[%clk 0:01:01]}  f5 {[%clk 0:01:33]} 28. exf5 {[%clk 0:00:53]}  Rxf5 {[%clk 0:01:32]} 29. Nc2 {[%clk 0:00:52]}  Rc3 {[%clk 0:01:11]} 30. Ne3 {[%clk 0:00:51]}  Rf7 {[%clk 0:01:12]} 31. fxe5 {[%clk 0:00:46]}  dxe5 {[%clk 0:01:12]} 32. Rf2 {[%clk 0:00:43]}  e4 {[%clk 0:01:07]} 33. Ng4 {[%clk 0:00:28]}  Rxf2 {[%clk 0:00:51]} 34. Nxf2 {[%clk 0:00:28]}  e3 {[%clk 0:00:51]} 35. Ng4 {[%clk 0:00:26]}  Bf3 {[%clk 0:00:50]} 0-1


[Site "https://www.chess.com"]

[Event "Titled Tuesday Blitz June 6 Early 2023"]
[White "Sharan, Rao"]
[Black "Rosenberg, Evan S"]
[WhiteFideId "5073464"]
[BlackFideId "2019299"]
[WhiteElo "2149"]
[BlackElo "2344"]
[Result "1-0"]
[Round "4"]
[TimeControl "180+2"]
[Date "2023.06.06"]
[WhiteClock "0:00:09"]
[BlackClock "0:00:47"]
[Board "110"]

1. d4 {[%clk 0:02:56]}  d5 {[%clk 0:02:58]} 2. Nc3 {[%clk 0:02:55]}  Nf6 {[%clk 0:02:57]} 3. Bf4 {[%clk 0:02:55]}  a6 {[%clk 0:02:57]} 4. e3 {[%clk 0:02:52]}  e6 {[%clk 0:02:54]} 5. g4 {[%clk 0:02:46]}  Bb4 {[%clk 0:02:53]} 6. Bd3 {[%clk 0:02:35]}  b5 {[%clk 0:02:52]} 7. Ne2 {[%clk 0:02:26]}  Nxg4 {[%clk 0:02:43]} 8. Rg1 {[%clk 0:02:25]}  Qh4 {[%clk 0:02:44]} 9. Bg3 {[%clk 0:02:18]}  Qh5 {[%clk 0:02:44]} 10. Nf4 {[%clk 0:02:01]}  Qg5 {[%clk 0:02:43]} 11. h4 {[%clk 0:02:01]}  Nxe3 {[%clk 0:02:38]} 12. hxg5 {[%clk 0:01:45]}  Nxd1 {[%clk 0:02:39]} 13. Rxd1 {[%clk 0:01:46]}  Nd7 {[%clk 0:02:37]} 14. Nh5 {[%clk 0:01:45]}  g6 {[%clk 0:02:34]} 15. Nf6+ {[%clk 0:01:44]}  Nxf6 {[%clk 0:02:34]} 16. gxf6 {[%clk 0:01:44]}  c5 {[%clk 0:02:34]} 17. Bd6 {[%clk 0:01:36]}  Bxc3+ {[%clk 0:02:30]} 18. bxc3 {[%clk 0:01:36]}  c4 {[%clk 0:02:31]} 19. Be2 {[%clk 0:01:29]}  Kd7 {[%clk 0:02:31]} 20. Be5 {[%clk 0:01:25]}  Rg8 {[%clk 0:02:25]} 21. Rh1 {[%clk 0:01:24]}  h5 {[%clk 0:02:25]} 22. Kd2 {[%clk 0:01:25]}  Kc6 {[%clk 0:02:24]} 23. Rdg1 {[%clk 0:01:24]}  Bd7 {[%clk 0:02:23]} 24. Rg5 {[%clk 0:01:24]}  Ra7 {[%clk 0:02:22]} 25. Rhg1 {[%clk 0:01:24]}  Raa8 {[%clk 0:02:20]} 26. Bxh5 {[%clk 0:01:22]}  Rh8 {[%clk 0:02:20]} 27. Bf3 {[%clk 0:01:20]}  Rh3 {[%clk 0:02:19]} 28. R5g3 {[%clk 0:01:19]}  Rh2 {[%clk 0:02:15]} 29. Ke2 {[%clk 0:00:59]}  Rah8 {[%clk 0:02:10]} 30. R3g2 {[%clk 0:00:47]}  R2h7 {[%clk 0:02:07]} 31. Rb1 {[%clk 0:00:39]}  a5 {[%clk 0:02:02]} 32. Rgg1 {[%clk 0:00:39]}  Kb6 {[%clk 0:01:55]} 33. Rh1 {[%clk 0:00:40]}  Kc6 {[%clk 0:01:40]} 34. Rxh7 {[%clk 0:00:39]}  Rxh7 {[%clk 0:01:40]} 35. Rh1 {[%clk 0:00:40]}  Rxh1 {[%clk 0:01:40]} 36. Bxh1 {[%clk 0:00:41]}  b4 {[%clk 0:01:36]} 37. Kd2 {[%clk 0:00:29]}  Kb5 {[%clk 0:01:32]} 38. Bd6 {[%clk 0:00:29]}  Ka4 {[%clk 0:01:29]} 39. Bf3 {[%clk 0:00:23]}  Ka3 {[%clk 0:01:10]} 40. cxb4 {[%clk 0:00:23]}  a4 {[%clk 0:01:08]} 41. b5+ {[%clk 0:00:19]}  Kxa2 {[%clk 0:01:08]} 42. b6 {[%clk 0:00:18]}  Bc6 {[%clk 0:01:08]} 43. Bg4 {[%clk 0:00:18]}  e5 {[%clk 0:00:59]} 44. dxe5 {[%clk 0:00:17]}  d4 {[%clk 0:00:58]} 45. e6 {[%clk 0:00:17]}  Be4 {[%clk 0:00:46]} 46. exf7 {[%clk 0:00:15]}  c3+ {[%clk 0:00:47]} 47. Kc1 {[%clk 0:00:09]} 1-0


[Site "https://www.chess.com"]

[Event "Titled Tuesday Blitz June 6 Early 2023"]
[White "Sharapov, Evgeny"]
[Black "Napoli, Nicolo"]
[WhiteFideId "14103133"]
[BlackFideId "813702"]
[WhiteElo "2367"]
[BlackElo "2308"]
[Result "1-0"]
[Round "4"]
[TimeControl "180+2"]
[Date "2023.06.06"]
[WhiteClock "0:02:48"]
[BlackClock "0:02:06"]
[Board "111"]

1. e4 {[%clk 0:02:59]}  c6 {[%clk 0:02:53]} 2. d4 {[%clk 0:02:59]}  d5 {[%clk 0:02:54]} 3. e5 {[%clk 0:02:59]}  c5 {[%clk 0:02:55]} 4. Nf3 {[%clk 0:02:59]}  Nc6 {[%clk 0:02:54]} 5. c4 {[%clk 0:02:59]}  Bg4 {[%clk 0:02:38]} 6. cxd5 {[%clk 0:02:56]}  Qxd5 {[%clk 0:02:37]} 7. Nc3 {[%clk 0:02:56]}  Qe6 {[%clk 0:02:29]} 8. d5 {[%clk 0:02:53]}  Qf5 {[%clk 0:02:12]} 9. dxc6 {[%clk 0:02:52]}  Bxf3 {[%clk 0:02:11]} 10. Qxf3 {[%clk 0:02:50]}  Qxe5+ {[%clk 0:02:11]} 11. Be2 {[%clk 0:02:49]}  Nf6 {[%clk 0:02:07]} 12. cxb7 {[%clk 0:02:48]}  Rb8 {[%clk 0:02:06]} 1-0


[Site "https://www.chess.com"]

[Event "Titled Tuesday Blitz June 6 Early 2023"]
[White "Devaev, Alexander"]
[Black "Rosh Jain"]
[WhiteFideId "4169395"]
[BlackFideId "25789465"]
[WhiteElo "2172"]
[BlackElo "2233"]
[Result "0-1"]
[Round "4"]
[TimeControl "180+2"]
[Date "2023.06.06"]
[WhiteClock "0:00:36"]
[BlackClock "0:00:34"]
[Board "112"]

1. Nf3 {[%clk 0:02:56]}  d5 {[%clk 0:02:59]} 2. c4 {[%clk 0:02:57]}  d4 {[%clk 0:02:59]} 3. d3 {[%clk 0:02:57]}  c5 {[%clk 0:02:58]} 4. e3 {[%clk 0:02:58]}  Nc6 {[%clk 0:02:58]} 5. Be2 {[%clk 0:02:56]}  e5 {[%clk 0:02:58]} 6. e4 {[%clk 0:02:57]}  Nf6 {[%clk 0:02:58]} 7. Nbd2 {[%clk 0:02:57]}  g6 {[%clk 0:02:58]} 8. Nf1 {[%clk 0:02:58]}  Bg7 {[%clk 0:02:57]} 9. h3 {[%clk 0:02:58]}  Be6 {[%clk 0:02:55]} 10. Ng5 {[%clk 0:02:55]}  Bd7 {[%clk 0:02:54]} 11. Ng3 {[%clk 0:02:56]}  h6 {[%clk 0:02:53]} 12. Nf3 {[%clk 0:02:56]}  O-O {[%clk 0:02:53]} 13. Nh2 {[%clk 0:02:57]}  Be6 {[%clk 0:02:50]} 14. Ng4 {[%clk 0:02:57]}  Nxg4 {[%clk 0:02:38]} 15. hxg4 {[%clk 0:02:56]}  Qa5+ {[%clk 0:02:22]} 16. Bd2 {[%clk 0:02:54]}  Qb6 {[%clk 0:02:22]} 17. Qc1 {[%clk 0:02:52]}  g5 {[%clk 0:02:14]} 18. Bd1 {[%clk 0:02:44]}  Nb4 {[%clk 0:02:08]} 19. Be2 {[%clk 0:02:35]}  f6 {[%clk 0:02:08]} 20. a3 {[%clk 0:02:35]}  Nc6 {[%clk 0:02:05]} 21. Bf3 {[%clk 0:02:32]}  Na5 {[%clk 0:02:03]} 22. Bxa5 {[%clk 0:01:35]}  Qxa5+ {[%clk 0:02:01]} 23. b4 {[%clk 0:01:35]}  cxb4 {[%clk 0:02:00]} 24. Qd2 {[%clk 0:01:35]}  b5 {[%clk 0:01:49]} 25. c5 {[%clk 0:01:35]}  Qc7 {[%clk 0:01:27]} 26. axb4 {[%clk 0:01:33]}  a5 {[%clk 0:01:23]} 27. bxa5 {[%clk 0:01:20]}  Qxc5 {[%clk 0:01:22]} 28. O-O {[%clk 0:01:20]}  b4 {[%clk 0:01:20]} 29. Rfb1 {[%clk 0:01:18]}  b3 {[%clk 0:01:20]} 30. Bd1 {[%clk 0:01:16]}  Rfb8 {[%clk 0:01:15]} 31. Nf5 {[%clk 0:01:16]}  Qc3 {[%clk 0:01:11]} 32. Rb2 {[%clk 0:00:59]}  Qxd2 {[%clk 0:00:42]} 33. Rxd2 {[%clk 0:00:59]}  b2 {[%clk 0:00:42]} 34. Rb1 {[%clk 0:00:59]}  Rxa5 {[%clk 0:00:42]} 35. Ne7+ {[%clk 0:00:53]}  Kf7 {[%clk 0:00:41]} 36. Nc6 {[%clk 0:00:54]}  Ra1 {[%clk 0:00:41]} 37. Bc2 {[%clk 0:00:51]}  Rc8 {[%clk 0:00:35]} 38. Rdd1 {[%clk 0:00:35]}  Rxc6 {[%clk 0:00:33]} 39. Rxa1 {[%clk 0:00:35]}  bxa1=Q {[%clk 0:00:34]} 40. Rxa1 {[%clk 0:00:36]}  Rxc2 {[%clk 0:00:34]} 0-1


[Site "https://www.chess.com"]

[Event "Titled Tuesday Blitz June 6 Early 2023"]
[White "Tristan, Leonardo"]
[Black "Mazurkiewicz, Michal"]
[WhiteFideId "113816"]
[BlackFideId "1124943"]
[WhiteElo "2461"]
[BlackElo "2063"]
[Result "1-0"]
[Round "4"]
[TimeControl "180+2"]
[Date "2023.06.06"]
[WhiteClock "0:00:31"]
[BlackClock "0:00:03"]
[Board "117"]

1. d4 {[%clk 0:03:00]}  Nf6 {[%clk 0:02:59]} 2. Nf3 {[%clk 0:03:01]}  g6 {[%clk 0:02:59]} 3. Bf4 {[%clk 0:03:01]}  Bg7 {[%clk 0:03:00]} 4. e3 {[%clk 0:03:02]}  O-O {[%clk 0:03:00]} 5. Be2 {[%clk 0:03:03]}  d6 {[%clk 0:03:01]} 6. O-O {[%clk 0:03:03]}  Re8 {[%clk 0:03:01]} 7. h3 {[%clk 0:03:02]}  Nc6 {[%clk 0:03:02]} 8. Bh2 {[%clk 0:02:59]}  Nd7 {[%clk 0:03:01]} 9. e4 {[%clk 0:02:52]}  e5 {[%clk 0:03:00]} 10. c3 {[%clk 0:02:53]}  Qe7 {[%clk 0:02:57]} 11. Re1 {[%clk 0:02:51]}  f5 {[%clk 0:01:49]} 12. exf5 {[%clk 0:02:42]}  gxf5 {[%clk 0:01:49]} 13. dxe5 {[%clk 0:02:39]}  dxe5 {[%clk 0:01:47]} 14. Bf1 {[%clk 0:02:23]}  Kh8 {[%clk 0:01:44]} 15. Na3 {[%clk 0:02:19]}  e4 {[%clk 0:01:43]} 16. Bxc7 {[%clk 0:02:14]}  Nde5 {[%clk 0:01:27]} 17. Bxe5 {[%clk 0:02:03]}  Nxe5 {[%clk 0:01:24]} 18. Nxe5 {[%clk 0:02:03]}  Qxe5 {[%clk 0:01:13]} 19. Nc4 {[%clk 0:02:03]}  Qc7 {[%clk 0:01:09]} 20. Qd6 {[%clk 0:01:58]}  Qf7 {[%clk 0:00:53]} 21. Qf4 {[%clk 0:01:58]}  Qg6 {[%clk 0:00:48]} 22. Rad1 {[%clk 0:01:53]}  Be6 {[%clk 0:00:47]} 23. Rd6 {[%clk 0:01:53]}  Qf7 {[%clk 0:00:31]} 24. Ne5 {[%clk 0:01:42]}  Qc7 {[%clk 0:00:24]} 25. Rxe6 {[%clk 0:01:40]}  Bxe5 {[%clk 0:00:19]} 26. Rxe8+ {[%clk 0:01:36]}  Rxe8 {[%clk 0:00:20]} 27. Qxf5 {[%clk 0:01:37]}  Qb6 {[%clk 0:00:14]} 28. Rxe4 {[%clk 0:01:31]}  Qd6 {[%clk 0:00:06]} 29. Rh4 {[%clk 0:01:15]}  Qe7 {[%clk 0:00:03]} 30. Rh5 {[%clk 0:01:06]}  Bd6 {[%clk 0:00:01]} 31. Rh6 {[%clk 0:00:52]}  Rf8 {[%clk 0:00:02]} 32. Qd3 {[%clk 0:00:42]}  Bc5 {[%clk 0:00:02]} 33. Rh5 {[%clk 0:00:30]}  Bxf2+ {[%clk 0:00:02]} 34. Kh1 {[%clk 0:00:31]}  Bb6 {[%clk 0:00:02]} 35. Rf5 {[%clk 0:00:31]}  Rxf5 {[%clk 0:00:02]} 36. Qxf5 {[%clk 0:00:31]}  Qe3 {[%clk 0:00:03]} 37. Qf8# {[%clk 0:00:31]} 1-0


[Site "https://www.chess.com"]